bitfinex/quotes_ETHUSD_20250806
["timestamp","ask_amount","ask_price","bid_price","bid_amount"]
[1754503769405,1.701023,3702.2,3701.8,2.70134131]
[1754503769693,0.8892,3702.1,3701.7,2.83664236]
[1754503769880,0.8892,3702.1,3701.8,2.70138298]
[1754503770079,0.811823,3702.2,3701.8,2.70138298]
[1754503770289,0.811823,3702.2,3701.7,0.1352]
[1754503770493,0.8892,3702.1,3701.6,4.207]
[1754503770674,0.811823,3702.2,3701.6,4.207]
[1754503770675,0.811823,3702.2,3701.6,7.0437341]
[1754503770873,0.9612,3702.0,3701.6,7.0437341]
[1754503771414,0.9612,3702.0,3701.7,2.70146054]
[1754503771616,0.9612,3702.0,3701.6,4.3422]
[1754503771617,0.9612,3702.0,3701.6,7.04373064]
[1754503771909,0.811823,3702.2,3701.7,2.70141248]
[1754503772114,1.1520223,3702.1,3701.6,2.83773018]
[1754503772314,1.1520223,3702.1,3701.6,0.1362]
[1754503772315,0.9612,3702.0,3701.6,0.1362]
[1754503772461,0.1352,3701.7,3701.6,0.001]
[1754503772909,1.0964,3701.7,3701.6,0.001]
[1754503773970,1.908369,3701.7,3701.6,0.001]
[1754503774172,2.36933191,3701.7,3701.6,0.001]
[1754503775470,1.908369,3701.7,3701.6,0.001]
[1754503777906,4.60983049,3701.7,3701.6,0.001]
[1754503778089,1.908369,3701.7,3701.6,0.001]
[1754503779871,4.60983049,3701.7,3701.6,0.001]
[1754503780505,1.908369,3701.7,3701.6,0.001]
[1754503780718,5.0708079,3701.7,3701.6,0.001]
[1754503783203,8.0708079,3701.7,3701.6,0.001]
[1754503784023,8.99182071,3701.7,3701.6,0.001]
[1754503784197,11.4708079,3701.7,3701.6,0.001]
[1754503784402,6.25197243,3701.0,3700.9,0.001]
[1754503784604,11.48755846,3701.0,3700.9,0.001]
[1754503784801,12.44875846,3701.0,3700.9,0.001]
[1754503785005,12.55705646,3701.0,3700.9,0.001]
[1754503785523,12.68195214,3701.0,3700.9,0.001]
[1754503786308,8.47695214,3701.0,3700.9,1e-08]
[1754503786488,10.91065646,3701.0,3700.9,1e-08]
[1754503786684,11.04585646,3701.0,3700.9,1e-08]
[1754503787088,12.00705646,3701.0,3700.9,1e-08]
[1754503787828,12.55705646,3701.0,3700.9,1e-08]
[1754503791526,19.73705646,3701.0,3700.9,1e-08]
[1754503793113,6.25204544,3700.9,3700.8,1e-08]
[1754503793311,9.9419073,3700.9,3700.8,1e-08]
[1754503793506,14.1469073,3700.9,3700.8,1e-08]
[1754503796233,14.2552233,3700.9,3700.8,1e-08]
[1754503798255,13.7601233,3700.9,3700.8,1e-08]
[1754503798535,14.2552233,3700.9,3700.8,1e-08]
[1754503800338,6.25233752,3700.5,3700.4,1e-08]
[1754503800539,21.70769368,3700.5,3700.4,1e-08]
[1754503800741,22.65969368,3700.5,3700.4,1e-08]
[1754503801400,11.40933752,3700.5,3700.4,1e-08]
[1754503801601,6.2528488,3699.8,3699.7,1e-08]
[1754503801836,6.2528488,3699.8,3699.4,1e-08]
[1754503801837,6.25306798,3699.5,3699.4,1e-08]
[1754503802036,13.81428079,3699.5,3699.4,1e-08]
[1754503802222,14.76628079,3699.5,3699.4,1e-08]
[1754503802423,17.49494265,3699.5,3699.4,1e-08]
[1754503802706,17.32937705,3699.5,3699.4,1e-08]
[1754503804549,3.25423754,3697.9,3697.8,0.001]
[1754503804742,10.45923754,3697.9,3697.8,0.001]
[1754503804942,11.78909774,3697.9,3697.8,0.001]
[1754503805119,12.74109774,3697.9,3697.8,0.001]
[1754503805533,11.78909774,3697.9,3697.8,0.001]
[1754503806054,12.74109774,3697.9,3697.8,0.001]
[1754503806255,12.24999774,3697.9,3697.8,0.001]
[1754503806460,5.3407602,3697.9,3697.8,0.001]
[1754503806659,3.0,3697.9,3697.8,0.6067]
[1754503806823,0.1352,3698.3,3698.2,2.70398698]
[1754503807029,0.1352,3698.6,3698.3,2.70389769]
[1754503807332,0.1352,3698.6,3698.4,0.4705]
[1754503807527,0.1352,3698.6,3698.5,0.3257]
[1754503808058,0.1352,3698.6,3698.3,0.3257]
[1754503808241,3.0,3698.7,3698.1,0.1448]
[1754503808443,0.1352,3698.4,3698.2,0.3257]
[1754503808623,0.1352,3698.4,3697.8,0.001]
[1754503808829,0.1352,3698.1,3697.9,0.4705]
[1754503809181,0.1352,3698.1,3698.0,0.4705]
[1754503810059,4.205,3698.4,3698.0,3.17466441]
[1754503810360,4.205,3698.4,3698.1,0.4705]
[1754503810576,4.205,3698.4,3698.2,0.4705]
[1754503810730,4.205,3698.5,3698.3,2.70390624]
[1754503811059,0.81264,3699.3,3698.6,2.70372573]
[1754503811245,0.1352,3699.1,3698.7,0.4705]
[1754503811452,2.70284061,3699.9,3698.9,2.70345934]
[1754503811453,0.1352,3699.2,3698.9,2.70345934]
[1754503811649,0.1352,3699.2,3699.0,0.4705]
[1754503812032,0.1352,3699.2,3699.1,0.3257]
[1754503812231,0.1352,3699.2,3699.1,0.4705]
[1754503812423,0.1352,3699.2,3699.1,3.17386027]
[1754503812821,0.1352,3699.2,3699.1,0.4705]
[1754503813245,3.25264711,3700.1,3699.1,0.4705]
[1754503813246,2.10645375,3700.4,3699.2,2.70328719]
[1754503813450,0.1352,3699.8,3699.4,2.70307953]
[1754503813848,0.1352,3699.8,3699.5,0.3257]
[1754503814049,0.4621,3699.8,3698.7,2.70359082]
[1754503814255,0.1352,3699.4,3698.8,0.6057]
[1754503814459,0.1352,3699.6,3699.0,0.1352]
[1754503814664,0.1352,3699.4,3699.1,2.70334755]
[1754503815053,0.1352,3699.4,3699.2,0.3257]
[1754503815427,4.204,3700.2,3699.3,0.4705]
[1754503815646,0.1352,3699.8,3699.5,2.70305665]
[1754503816058,0.1352,3699.8,3699.6,0.3257]
[1754503816556,0.1352,3699.8,3699.4,2.70313367]
[1754503816763,0.1352,3699.8,3699.4,3.02883367]
[1754503816961,0.1352,3699.8,3699.4,2.70313367]
[1754503817144,0.1352,3699.8,3699.5,0.3257]
[1754503817660,0.1352,3699.8,3698.9,0.3257]
[1754503817661,1.0399,3699.8,3698.9,0.3257]
[1754503817863,0.1352,3699.6,3699.1,0.1352]
[1754503818076,0.1352,3699.6,3699.2,3.02893317]
[1754503819281,0.1352,3699.6,3699.2,0.3257]
[1754503819445,0.1352,3699.6,3699.1,0.1352]
[1754503819765,0.1352,3699.4,3698.9,2.83863913]
[1754503820060,0.55,3699.4,3698.8,3.02927007]
[1754503820274,0.1352,3699.2,3698.7,0.1352]
[1754503820482,0.1352,3699.2,3698.8,2.70356768]
[1754503820627,0.55271,3699.2,3698.5,2.70377334]
[1754503820833,0.1352,3699.2,3698.6,0.1352]
[1754503821028,0.1352,3699.2,3698.7,2.70364578]
[1754503821471,0.1352,3699.2,3698.6,2.83890742]
[1754503821676,0.6251,3699.2,3698.6,2.83890742]
[1754503821875,0.1352,3699.2,3698.7,2.7036308]
[1754503822168,0.1352,3699.2,3698.6,2.8389039]
[1754503822369,3.0,3698.8,3698.6,0.1352]
[1754503822526,7.56065263,3698.7,3698.6,0.1352]
[1754503822728,3.55,3698.6,3698.3,0.001]
[1754503822931,0.6852,3698.4,3698.3,0.001]
[1754503823442,0.1352,3698.4,3698.3,0.001]
[1754503823751,0.1352,3698.6,3698.3,0.3267]
[1754503823953,0.55,3698.5,3698.3,0.001]
[1754503824265,3.6852,3698.4,3698.3,0.001]
[1754503824634,0.6852,3698.4,3698.3,0.001]
[1754503825554,0.1352,3698.4,3698.3,0.001]
[1754503827540,7.34107194,3698.4,3698.3,0.001]
[1754503828791,7.34107194,3698.4,3698.3,4e-05]
[1754503829085,8.7658521,3698.4,3698.3,4e-05]
[1754503829254,11.6158521,3698.4,3698.3,4e-05]
[1754503829648,8.7658521,3698.4,3698.3,4e-05]
[1754503829820,8.8742531,3698.4,3698.3,4e-05]
[1754503830657,4.55998016,3698.4,3698.3,4e-05]
[1754503830857,8.2491,3698.4,3698.3,4e-05]
[1754503831109,10.95297194,3698.4,3698.3,4e-05]
[1754503831257,3.1352,3698.4,3698.3,4e-05]
[1754503831460,0.1352,3698.6,3698.3,4e-05]
[1754503831808,0.1352,3698.6,3698.3,2.70398423]
[1754503831956,0.1352,3698.6,3698.4,2.70385089]
[1754503832160,0.1352,3698.6,3698.3,0.32584]
[1754503832594,0.1352,3698.6,3698.3,4e-05]
[1754503832759,0.10134761,3877.3,3698.4,2.70387194]
[1754503832760,0.4388,3701.0,3698.4,2.70387194]
[1754503832959,0.4388,3701.0,3698.3,0.58695437]
[1754503832960,0.4741,3700.9,3699.6,2.70292192]
[1754503833194,0.812604,3700.4,3699.8,2.70283204]
[1754503833413,3.0,3700.7,3699.9,2.70273207]
[1754503833710,0.9109,3700.6,3698.8,4.5384]
[1754503833913,3.0,3700.2,3698.9,0.5723196]
[1754503834114,0.9109,3700.2,3699.3,2.70315448]
[1754503834416,3.55,3700.0,3699.3,2.70315448]
[1754503835410,0.55,3700.0,3698.9,0.3258]
[1754503835608,0.55,3700.0,3699.0,0.70039137]
[1754503835774,0.55,3699.7,3698.6,0.3258]
[1754503835976,3.25320256,3699.4,3698.6,2.70371897]
[1754503836214,0.55,3699.2,3698.6,2.70371897]
[1754503836386,0.55,3699.2,3698.5,2.70379762]
[1754503836915,0.55,3699.3,3698.8,2.70354505]
[1754503837316,0.55,3699.3,3698.4,0.3258]
[1754503837317,0.55,3699.3,3698.7,2.70363958]
[1754503837520,0.55,3699.4,3698.7,2.70363958]
[1754503837885,0.55,3699.2,3698.6,2.70370575]
[1754503838592,3.55,3699.1,3698.4,8.22724561]
[1754503838819,3.25337588,3699.1,3698.4,1.32042762]
[1754503839033,0.55,3698.9,3698.3,4e-05]
[1754503839197,0.55,3698.9,3698.3,2.70397545]
[1754503839529,0.55,3698.9,3698.3,4e-05]
[1754503840118,0.55,3698.9,3698.3,2.70397567]
[1754503840516,0.55,3698.9,3698.3,4e-05]
[1754503840719,3.55,3698.7,3698.3,4e-05]
[1754503841122,4.4609,3698.7,3698.3,4e-05]
[1754503841293,0.9109,3698.6,3698.3,4e-05]
[1754503841936,0.55,3698.7,3698.3,4e-05]
[1754503842137,0.55,3698.8,3698.3,4e-05]
[1754503842325,0.55,3698.8,3698.3,2.70398225]
[1754503842506,1.4609,3698.8,3698.3,4e-05]
[1754503843020,0.1352,3698.6,3698.3,4e-05]
[1754503843731,0.1352,3698.6,3698.3,2.70397675]
[1754503844033,0.1352,3698.6,3698.3,4e-05]
[1754503845691,0.9109,3698.5,3698.3,4e-05]
[1754503847001,11.36777194,3698.4,3698.3,4e-05]
[1754503847321,11.21777194,3698.4,3698.3,4e-05]
[1754503849313,11.32617094,3698.4,3698.3,4e-05]
[1754503850634,3.25423754,3697.9,3697.8,1e-08]
[1754503850810,10.45623754,3697.9,3697.8,1e-08]
[1754503851012,12.95358432,3697.9,3697.8,1e-08]
[1754503853014,3.25453008,3697.5,3697.4,1e-08]
[1754503853213,10.45753008,3697.5,3697.4,1e-08]
[1754503853415,14.21843008,3697.5,3697.4,1e-08]
[1754503854023,14.21843008,3697.5,3696.6,0.001]
[1754503854024,6.25511537,3696.7,3696.6,0.001]
[1754503854230,11.35412987,3696.7,3696.6,0.001]
[1754503854429,3.2554813,3696.2,3696.1,0.001]
[1754503854657,10.4584813,3696.2,3696.1,0.001]
[1754503854860,11.3693813,3696.2,3696.1,0.001]
[1754503855022,12.776859,3696.2,3696.1,0.001]
[1754503855745,12.776859,3696.2,3696.1,1e-08]
[1754503856459,6.25577412,3695.8,3695.7,1e-08]
[1754503856660,6.25577412,3695.8,3695.3,1e-08]
[1754503856661,3.256067,3695.4,3695.3,1e-08]
[1754503856863,10.459067,3695.4,3695.3,1e-08]
[1754503857169,13.0922564,3695.4,3695.3,1e-08]
[1754503857927,3.25672621,3694.5,3694.4,0.001]
[1754503858133,10.46072621,3694.5,3694.4,0.001]
[1754503858366,10.59592621,3694.5,3694.4,0.001]
[1754503858525,12.83708255,3694.5,3694.4,0.001]
[1754503858943,1.999,3694.0,3693.7,0.0096]
[1754503859138,0.1352,3693.9,3693.7,0.0096]
[1754503859540,0.1352,3693.9,3693.8,0.3258]
[1754503860067,4.999,3694.0,3693.8,0.4706]
[1754503860262,4.999,3694.0,3693.9,0.3258]
[1754503860441,4.999,3694.0,3693.9,0.3354]
[1754503860757,4.999,3694.0,3693.9,3.04256586]
[1754503860965,1.999,3694.0,3693.9,3.63107186]
[1754503861124,1.999,3694.0,3693.9,3.65814351]
[1754503861327,1.999,3694.0,3693.9,3.76627186]
[1754503861864,3.1352,3695.1,3694.4,2.70675285]
[1754503862078,3.1352,3695.1,3694.6,2.70659872]
[1754503862285,0.1352,3695.1,3694.6,2.84185295]
[1754503862577,0.1352,3695.1,3694.6,0.1352]
[1754503862746,0.1352,3695.1,3694.8,2.70645267]
[1754503862942,0.1352,3695.1,3694.6,0.1352]
[1754503863190,7.46140654,3695.0,3693.9,5.41433172]
[1754503863329,7.46140654,3695.0,3693.8,4.205]
[1754503863330,0.1352,3694.8,3694.3,0.1352]
[1754503863563,0.813406,3695.8,3694.6,0.1352]
[1754503863564,3.0,3695.0,3694.6,0.1352]
[1754503863763,3.1352,3695.1,3694.6,2.84184393]
[1754503864165,3.1352,3695.1,3694.6,0.1352]
[1754503864668,3.1352,3695.1,3694.8,2.7064978]
[1754503864861,3.1352,3695.1,3694.6,0.1352]
[1754503865076,0.1352,3695.1,3694.7,2.70657969]
[1754503865306,0.1352,3695.1,3694.9,2.70638261]
[1754503865508,0.55,3695.7,3695.1,2.70621361]
[1754503865509,4.3402,3695.5,3695.1,2.70621361]
[1754503866190,4.3402,3695.5,3695.2,2.70620129]
[1754503866509,3.0,3695.4,3695.0,0.1352]
[1754503867224,3.0,3695.4,3694.3,4.206]
[1754503867358,0.1352,3695.3,3694.9,2.70637961]
[1754503867559,0.4824,3696.6,3694.4,0.27068346]
[1754503867770,0.1352,3696.0,3695.6,2.705917]
[1754503868082,0.1352,3696.2,3695.7,0.1352]
[1754503868254,3.1352,3696.2,3695.7,2.84104457]
[1754503868775,0.1352,3696.2,3695.8,2.70574621]
[1754503868987,0.1352,3696.2,3695.7,0.1352]
[1754503868988,0.1352,3696.7,3696.1,0.1352]
[1754503869172,2.70484751,3697.1,3696.1,0.1352]
[1754503869371,0.1352,3696.9,3696.4,2.84050522]
[1754503869564,0.1352,3696.9,3696.6,2.70517211]
[1754503869885,3.0,3696.8,3696.4,0.1352]
[1754503870058,0.1352,3696.9,3696.5,2.7052172]
[1754503870259,0.1352,3696.9,3696.4,2.84051881]
[1754503870792,0.6176,3696.9,3696.4,0.1352]
[1754503871001,0.1352,3696.9,3696.4,0.1352]
[1754503871203,3.1352,3696.9,3696.4,0.1352]
[1754503871409,3.0,3696.7,3696.4,0.1352]
[1754503871584,0.1352,3696.9,3696.5,2.70520643]
[1754503871779,0.1352,3696.9,3696.4,2.84050876]
[1754503871990,0.6176,3696.9,3696.4,0.1352]
[1754503872302,3.6176,3696.9,3696.4,0.1352]
[1754503872498,3.1352,3696.9,3696.4,0.1352]
[1754503872704,3.0,3697.3,3696.7,2.70506466]
[1754503873005,3.1352,3697.3,3696.8,2.84023148]
[1754503873305,3.1352,3697.3,3696.8,0.1352]
[1754503873506,3.1352,3697.3,3696.9,2.70496902]
[1754503873507,0.1352,3697.3,3696.9,2.70496902]
[1754503873728,0.1352,3697.6,3696.5,2.70526173]
[1754503874032,2.7043157,3697.8,3696.5,2.70526173]
[1754503874033,3.0,3697.8,3697.2,2.70473487]
[1754503874174,3.1352,3697.8,3697.2,2.70473487]
[1754503874375,0.002,3698.1,3697.1,4.23204822]
[1754503874619,2.7042866,3697.9,3697.6,0.1352]
[1754503874778,0.4824,3697.9,3697.6,0.1352]
[1754503875178,3.0,3698.0,3697.6,0.1352]
[1754503875671,0.1372,3698.1,3697.6,0.1352]
[1754503875877,0.4844,3698.1,3697.6,0.1352]
[1754503876310,0.002,3698.1,3697.6,0.1352]
[1754503876625,3.0,3698.0,3697.6,0.1352]
[1754503877578,0.002,3698.1,3697.7,2.70432142]
[1754503877778,0.002,3698.1,3697.6,2.83964783]
[1754503878109,0.002,3698.1,3697.8,0.1352]
[1754503879688,0.4824,3698.0,3697.8,0.1352]
[1754503879887,3.16283982,3698.1,3697.8,0.1352]
[1754503880213,3.9391,3697.9,3695.8,0.4206]
[1754503880383,2.70465332,3697.4,3696.7,2.70510957]
[1754503880578,0.6176,3697.7,3697.1,0.1352]
[1754503880783,2.70444594,3697.7,3696.8,2.70503324]
[1754503880982,2.70444594,3697.7,3697.4,0.1352]
[1754503881183,2.70471804,3697.3,3696.3,6.501]
[1754503881382,2.70463166,3697.4,3697.1,0.1352]
[1754503881615,3.18703166,3697.4,3697.1,0.1352]
[1754503881983,0.1352,3697.6,3697.1,0.1352]
[1754503882184,3.64379346,3697.3,3696.7,4.203]
[1754503882406,2.70476592,3697.2,3696.8,0.1352]
[1754503882717,3.64380151,3697.3,3696.8,0.1352]
[1754503882897,0.1352,3697.4,3696.8,2.8402171]
[1754503882898,2.83981394,3697.4,3696.8,2.8402171]
[1754503883094,0.1352,3697.4,3696.8,0.1352]
[1754503883407,2.70467069,3697.4,3697.0,0.1352]
[1754503883607,2.70473857,3697.3,3697.0,0.1352]
[1754503883817,2.70478706,3697.2,3697.0,0.1352]
[1754503884221,0.4824,3697.1,3696.7,2.70510834]
[1754503884423,0.4824,3697.1,3696.8,0.1352]
[1754503885281,0.1352,3697.5,3697.0,2.70489586]
[1754503885484,3.0,3697.8,3697.3,0.1352]
[1754503885684,0.9391,3697.7,3697.3,0.1352]
[1754503886025,0.61252545,3697.8,3697.3,0.1352]
[1754503886229,0.9391,3697.7,3697.3,0.1352]
[1754503886534,3.64361895,3697.6,3697.3,0.1352]
[1754503886902,3.18693929,3697.5,3697.3,0.1352]
[1754503887096,0.4824,3697.4,3697.1,0.1352]
[1754503887496,0.4824,3697.3,3697.1,0.1352]
[1754503887732,0.9391,3697.3,3697.1,2.84001745]
[1754503887920,0.1352,3697.6,3697.2,2.70470371]
[1754503888631,0.1352,3697.6,3697.1,2.84000446]
[1754503888820,1.56856581,3697.6,3697.1,0.1352]
[1754503889008,0.55,3697.4,3697.1,0.1352]
[1754503889338,0.1352,3697.4,3696.9,2.70489975]
[1754503889543,0.4824,3697.3,3696.9,2.70489975]
[1754503889902,0.4824,3697.3,3697.0,2.70488755]
[1754503890430,0.4824,3697.3,3696.8,2.84024196]
[1754503890602,0.4844,3698.0,3696.8,3.40932854]
[1754503890802,0.002,3698.0,3697.4,2.7045327]
[1754503891005,0.002,3698.0,3697.7,0.1352]
[1754503891247,0.002,3698.0,3697.7,2.83957319]
[1754503891405,0.002,3698.0,3697.7,2.83956397]
[1754503891749,0.002,3698.0,3697.7,0.1352]
[1754503892155,0.493,3698.0,3697.7,0.1352]
[1754503892528,0.9245,3697.9,3697.7,0.1352]
[1754503892852,0.491,3697.8,3697.7,0.1352]
[1754503893148,0.9245,3697.8,3697.7,0.1352]
[1754503893351,0.491,3697.8,3697.7,0.1352]
[1754503893852,0.002,3698.0,3697.8,2.7042468]
[1754503894039,0.002,3698.0,3697.9,2.70423754]
[1754503894216,0.002,3698.0,3697.8,2.70428661]
[1754503894947,0.002,3698.0,3697.7,0.1352]
[1754503894948,0.002,3698.0,3697.9,2.70423754]
[1754503895135,0.002,3698.0,3697.8,2.70430812]
[1754503895651,0.002,3698.0,3697.7,2.83956509]
[1754503895852,0.002,3698.0,3697.8,2.70429967]
[1754503896031,0.002,3698.0,3697.7,2.83955366]
[1754503896562,0.002,3698.0,3697.8,2.70428902]
[1754503896928,0.002,3698.0,3697.7,0.1352]
[1754503896929,0.491,3697.9,3697.7,0.1352]
[1754503897274,0.491,3697.9,3697.5,2.70451762]
[1754503897275,0.9245,3697.8,3697.6,4.202]
[1754503897756,0.1372,3698.0,3697.6,4.202]
[1754503897911,0.002,3698.0,3697.7,2.8395838]
[1754503898114,0.493,3698.0,3697.7,0.1352]
[1754503898413,0.9245,3697.9,3697.7,0.1352]
[1754503898843,0.491,3697.9,3697.7,0.1352]
[1754503899522,0.9245,3697.8,3697.6,4.202]
[1754503899725,0.491,3697.7,3697.6,4.202]
[1754503900245,3.002,3698.0,3697.6,6.90645694]
[1754503900246,0.002,3698.0,3697.6,6.90645694]
[1754503900411,0.002,3698.0,3697.9,2.70423754]
[1754503900846,0.002,3698.0,3697.8,2.83948199]
[1754503901071,0.002,3698.0,3697.8,0.1352]
[1754503901278,0.002,3698.0,3697.8,2.83950505]
[1754503901452,0.002,3698.0,3697.9,2.70423754]
[1754503901651,0.002,3698.0,3697.8,2.83948402]
[1754503902178,0.491,3697.9,3697.8,0.13357372]
[1754503902465,0.9245,3697.9,3697.8,0.13357372]
[1754503903171,0.9245,3697.9,3697.8,4.202]
[1754503903568,1.2877607,3697.9,3697.7,4.202]
[1754503903741,0.9245,3697.8,3697.7,4.202]
[1754503904074,0.9245,3697.8,3697.7,6.9063838]
[1754503904259,0.002,3698.0,3697.7,6.9063656]
[1754503904569,0.9245,3697.9,3697.8,4.201]
[1754503905059,0.9245,3697.9,3697.7,0.1352]
[1754503905242,0.9245,3697.8,3697.7,4.3362]
[1754503905568,0.9245,3697.8,3697.7,0.1352]
[1754503906333,0.491,3697.8,3697.7,0.1352]
[1754503910081,0.9245,3697.7,3697.6,4.201]
[1754503913189,0.491,3697.7,3697.5,6.90547373]
[1754503914078,0.491,3697.7,3697.5,4.201]
[1754503914278,0.491,3697.7,3697.5,6.90552143]
[1754503915544,0.1352,3697.9,3697.5,4.201]
[1754503915746,3.002,3698.0,3697.5,4.63462]
[1754503915950,3.002,3698.0,3697.7,2.70431337]
[1754503916264,3.002,3698.0,3697.8,4.201]
[1754503916462,3.002,3698.0,3697.9,4.201]
[1754503916763,3.493,3698.0,3697.9,6.90523754]
[1754503916965,3.493,3698.0,3697.9,4.44917748]
[1754503917147,3.493,3698.0,3697.9,4.201]
[1754503917347,3.493,3698.0,3697.9,6.90523754]
[1754503917751,3.493,3698.0,3697.9,4.201]
[1754503917951,3.9265,3698.0,3697.9,4.201]
[1754503918484,3.002,3698.0,3697.9,7.15339529]
[1754503918848,3.002,3698.0,3697.9,4.201]
[1754503919048,3.493,3698.0,3697.9,4.201]
[1754503919256,3.002,3698.0,3697.9,6.90523754]
[1754503919982,3.002,3698.0,3697.9,7.04043754]
[1754503920149,0.002,3698.0,3697.9,7.04043754]
[1754503920352,0.002,3698.0,3697.9,7.91592316]
[1754503920657,0.002,3698.0,3697.9,7.04043754]
[1754503921588,0.9357,3698.0,3697.9,4.2]
[1754503923181,3.9357,3698.0,3697.9,4.2]
[1754503923350,1.0709,3698.0,3697.7,4.2]
[1754503923548,0.9337,3697.9,3697.7,4.2]
[1754503923754,0.9337,3697.8,3697.7,4.2]
[1754503923958,0.9337,3697.8,3697.4,0.001]
[1754503924159,0.1352,3697.6,3697.4,0.001]
[1754503924555,0.9337,3697.5,3697.4,4.201]
[1754503924760,0.9337,3697.5,3697.4,0.001]
[1754503924990,0.9337,3697.5,3697.4,4.201]
[1754503926881,7.03156709,3697.5,3697.4,0.001]
[1754503927079,7.58156709,3697.5,3697.4,0.001]
[1754503927985,4.32703701,3697.5,3697.4,0.001]
[1754503928185,3.0,3697.5,3697.4,0.001]
[1754503928875,3.9337,3697.5,3697.4,0.001]
[1754503929385,3.0,3697.0,3696.5,0.1352]
[1754503929587,3.25501914,3696.9,3696.7,0.24825775]
[1754503929786,2.84028817,3696.8,3696.5,4.2]
[1754503929990,3.77398817,3696.8,3696.4,4.2]
[1754503930185,0.4805,3696.7,3696.5,0.24834128]
[1754503930697,0.4805,3696.7,3696.4,6.90533462]
[1754503930865,0.4805,3696.7,3696.5,0.24821781]
[1754503931081,0.1352,3696.9,3696.6,2.95440636]
[1754503931267,1.0689,3696.9,3696.6,2.70618855]
[1754503931481,0.4805,3696.8,3696.6,0.001]
[1754503931704,0.9337,3696.8,3696.6,0.001]
[1754503932095,0.4805,3696.8,3696.6,0.001]
[1754503932617,0.4805,3696.8,3696.6,2.70617994]
[1754503932908,0.4805,3696.8,3696.6,0.001]
[1754503933123,0.4805,3696.7,3696.6,0.001]
[1754503933275,0.9337,3696.7,3696.6,0.001]
[1754503933693,0.1352,3696.9,3696.6,2.7061609]
[1754503933891,0.4805,3696.8,3696.6,0.001]
[1754503934099,0.1352,3697.4,3697.1,2.70474969]
[1754503934419,0.4805,3697.6,3697.2,4.2]
[1754503934576,0.4805,3697.4,3696.6,0.001]
[1754503934773,0.4805,3697.4,3696.7,4.2]
[1754503934980,0.6157,3697.4,3697.0,2.70489459]
[1754503935207,0.6157,3697.4,3697.1,4.199]
[1754503935521,0.1352,3697.4,3697.2,2.70469745]
[1754503936210,0.1352,3697.4,3697.1,4.199]
[1754503936380,0.5884,3697.4,3697.1,4.199]
[1754503936710,0.9337,3697.3,3697.1,4.199]
[1754503936897,0.1352,3697.4,3697.2,4.2]
[1754503937097,0.9337,3697.2,3697.1,4.2]
[1754503937317,0.9337,3697.2,3696.9,2.84016694]
[1754503937512,3.25489586,3697.0,3696.9,0.1352]
[1754503937688,6.25489586,3697.0,3696.9,0.1352]
[1754503937893,7.18859586,3697.0,3696.9,0.1352]
[1754503938097,5.70497731,3696.9,3696.6,4.2]
[1754503938301,0.1352,3696.7,3696.6,4.2]
[1754503938779,0.4805,3696.7,3696.6,4.2]
[1754503939132,0.9337,3696.7,3696.6,4.2]
[1754503939999,0.1352,3696.9,3696.6,6.90518855]
[1754503940203,0.6157,3696.9,3696.6,4.2]
[1754503940405,0.6157,3696.9,3696.7,2.70511537]
[1754503940608,0.1352,3696.9,3696.8,2.70504219]
[1754503940921,3.0,3697.2,3696.8,4.199]
[1754503941238,0.1352,3696.9,3696.8,4.199]
[1754503941395,3.1352,3696.9,3696.6,0.001]
[1754503941594,0.9337,3696.8,3696.6,0.001]
[1754503941929,0.9337,3696.8,3696.6,4.2]
[1754503942133,0.4805,3696.7,3696.6,4.2]
[1754503942295,0.93207729,3696.7,3696.6,4.2]
[1754503942838,0.93207729,3696.7,3696.6,0.001]
[1754503943043,1.06727729,3696.7,3696.6,0.001]
[1754503943204,0.4532,3697.2,3696.6,2.7061405]
[1754503943404,0.1352,3697.3,3696.6,0.82671405]
[1754503943737,0.1352,3697.3,3697.1,2.70481151]
[1754503943917,0.1352,3697.3,3697.2,2.70474954]
[1754503944239,4.8147,3697.8,3697.4,2.70456791]
[1754503944443,3.9337,3697.7,3697.2,0.1352]
[1754503944605,3.9337,3697.7,3697.3,2.70465388]
[1754503944802,0.4805,3697.6,3697.3,2.70465388]
[1754503945047,0.9337,3697.6,3697.2,0.1352]
[1754503945332,0.4805,3697.5,3697.2,0.1352]
[1754503945738,0.4805,3697.5,3697.4,2.70460323]
[1754503946178,0.002,3697.8,3697.7,2.7043838]
[1754503946369,0.002,3697.8,3697.7,6.9033838]
[1754503946640,0.002,3697.8,3697.7,7.15078453]
[1754503947002,0.002,3697.8,3697.7,2.95178453]
[1754503947202,0.002,3697.8,3697.7,7.15078453]
[1754503947624,0.002,3697.8,3697.7,2.95178453]
[1754503947843,0.002,3697.8,3697.7,7.15078453]
[1754503948436,0.002,3697.8,3697.7,6.9033838]
[1754503948638,0.002,3697.8,3697.7,7.48554012]
[1754503950337,0.002,3697.8,3697.7,7.238225]
[1754503952336,0.002,3698.0,3697.9,2.70423754]
[1754503952641,0.002,3698.0,3697.9,16.3666092]
[1754503952818,1e-08,3698.1,3698.0,2.70416441]
[1754503953013,1e-08,3698.1,3698.0,3.66872056]
[1754503953318,1e-08,3698.1,3698.0,3.67132056]
[1754503954249,1e-08,3698.1,3698.0,9.1771517]
[1754503954541,1e-08,3698.1,3698.0,9.15011006]
[1754503954747,1e-08,3698.1,3698.0,20.41388404]
[1754503956328,1e-08,3698.1,3698.0,13.47971006]
[1754503957414,1e-08,3698.1,3698.0,13.48231006]
[1754503959842,1e-08,3698.1,3698.0,9.28531006]